Cogmind - Beta 15 @@@ ROGUE MODE // 2025.09.18 @ 17:00:01 Player: c4-BRK Result: Destroyed by Autobeam Turret with Autobeam Performance ------------- Evolutions (0) 0 Regions Visited (3) 600 Robots Destroyed (29) 145 Value Destroyed (714) 714 Prototype IDs (11) 220 Alien Tech Used (0) 0 Bonus (0) 0 TOTAL SCORE: 1679 Bonus ------- None Cogmind --------- Core Integrity 0/250 Matter 183/300 Energy 98/100 System Corruption 0% Temperature Cool (12) Movement Rolling (110) Location -10/Subcaves Parts ------- > --- POWER (1) -------- (None) > --- PROPULSION (2) --- Subdweller Monowheel Subdweller Monowheel > --- UTILITY (2) ------ Medium Storage Unit Subdweller Optics > --- WEAPON (2) ------- (None) > --- INVENTORY (10) --- Light Ion Engine Subdweller Power Source Arachnoskeleton Subdweller Optics Scrap Shield Peak State ------------ > --- POWER ------------ Ion Engine > --- PROPULSION ------- Subdweller Monowheel Subdweller Monowheel > --- UTILITY ---------- Medium Storage Unit Subdweller Optics > --- WEAPON ----------- Subdweller Machine Gun Rocket Launcher > --- INVENTORY -------- Light Ion Engine Subdweller Power Source Arachnoskeleton Subdweller Optics Scrap Shield [Rating: 15] Favorites ----------- Power Ion Engine Engine Ion Engine Propulsion Wheel Wheel Wheel Utility Medium Storage Unit Device Subdweller Optics Storage Medium Storage Unit Weapon Subdweller Machine Gun Energy Gun EM Pulse Gun Energy Cannon Beam Cannon Ballistic Gun Subdweller Machine Gun Launcher Rocket Launcher Build | -11 -10 -10 -10 ------- Run | Yrd Mat Min Sub Slots Evolved . | . . . . Power . | . . . . Propulsion . | . . . . Utility . | . . . . Weapon . | . . . . Parts Attached 19 | 6 4 . 9 Power 3 | 1 1 . 1 Engine 3 | 1 1 . 1 Core . | . . . . Reactor . | . . . . Propulsion 6 | 2 1 . 3 Treads . | . . . . Leg . | . . . . Wheel 6 | 2 1 . 3 Hover . | . . . . Flight . | . . . . Utility 3 | 1 1 . 1 Device 1 | . . . 1 Storage 2 | 1 1 . . Processor . | . . . . Hackware . | . . . . Protection . | . . . . Artifact . | . . . . Weapon 7 | 2 1 . 4 Energy Gun 2 | 1 1 . . Energy Cannon 1 | . . . 1 Ballistic Gun 3 | 1 . . 2 Ballistic Cannon . | . . . . Launcher 1 | . . . 1 Special Weapon . | . . . . Impact Weapon . | . . . . Slashing Weapon . | . . . . Piercing Weapon . | . . . . Special Melee Weapon . | . . . . Unidentified Prototypes . | . . . . Parts Lost 12 | . 2 . 10 Power 1 | . . . 1 Propulsion 4 | . 1 . 3 Utility . | . . . . Weapon 7 | . 1 . 6 Highest Loss Streak 2 | . 1 . 2 To Critical Strikes . | . . . . Average Backups 4 | . 1 3 5 Power 1 | . . 1 1 Propulsion 1 | . . 1 1 Utility . | . . . 1 Weapon . | . . 1 . Tool/Special . | . . . . Unused Backups 4 | . . . 4 Power 1 | . . . 1 Propulsion 1 | . . . 1 Utility 2 | . . . 2 Weapon . | . . . . Tool/Special . | . . . . Average Slot Usage (%) 88 | . 82 85 91 Engine 13 | . 14 14 13 Wheel 26 | . 26 28 27 Device 8 | . . . 13 Storage 14 | . 14 14 14 Energy Gun 7 | . 16 28 1 Ballistic Gun 10 | . 10 . 12 Launcher 5 | . . . 7 Peak Build Rating 15 | 6 7 7 15 Average Rating 9 | 3 6 7 11 On Entrance 5 | . 6 7 7 Naked Turns . | . . . . Heaviest Build 25 | 14 20 20 25 Greatest Support 40 | 26 26 20 40 Greatest Overweight (x) 1 | . 1 . 1 Average Overweight (x) . | . . . . Largest Inventory Capacity 10 | 8 10 10 10 Average Capacity 9 | 6 9 10 10 Most Carried 10 | 3 3 4 10 Average Carried 5 | . 1 3 7 Final Capacity 10 | 8 10 10 10 Final Carried 8 | . 2 4 8 Class Distribution -------------------- 63% | Scavenger-Mutant 36% | Mutant Dominant Class ---------------- Mutant | -10/Materials Mutant | -10/Mines Scavenger-Mutant | -10/Subcaves Resources | -11 -10 -10 -10 ----------- Run | Yrd Mat Min Sub Matter Collected 640 | 178 222 . 240 Remotely . | . . . . Salvage Created 704 | . 358 . 346 Parts 54 | . 27 . 27 Haulers Intercepted 1 | . 1 . . Recyclers Shooed . | . . . . Parts Field Recycled . | . . . . Retrieved Matter . | . . . . Parts Self-Destructed 15 | . . . 15 Prevented . | . . . . Kills | -11 -10 -10 -10 ------- Run | Yrd Mat Min Sub Combat Hostiles Destroyed 24 | . 10 . 14 Guns 19 | . 10 . 9 AOE 5 | . . . 5 Classes Destroyed 8 | . 6 . 2 Worker 1 | . 1 . . Hauler 1 | . 1 . . Operator 1 | . 1 . . Turret 1 | . . . 1 Watcher 1 | . 1 . . Swarmer 10 | . 6 . 4 Grunt 4 | . 4 . . Subdweller 10 | . . . 10 Best Kill Streak 5 | . 5 . 4 Combat Bots Only 4 | . 4 . 4 Max Kills in Single Turn 2 | . 1 . 2 Gunslinging . | . . . . Exploded 2 | . . . 2 Melee . | . . . . Uniques/NPCs Destroyed . | . . . . Combat | -11 -10 -10 -10 -------- Run | Yrd Mat Min Sub Hostile Shots Fired 168 | . 54 . 114 Missed 62 | . 16 . 46 Hits 106 | . 38 . 68 Projectile 106 | . 38 . 68 Damage Taken 1214 | . 395 . 819 Core 255 | . 77 . 178 Absorbed by Shields . | . . . . Regen/Repaired (Parts) 25 | . 25 . . Core Remaining (%) 100 | 100 . . . Volleys Fired 100 | . 39 . 61 Largest 2 | . 2 . 2 Hottest 125 | . 85 . 125 Shots Fired 135 | . 64 . 71 Gun 106 | . 64 . 42 Cannon 9 | . . . 9 Launcher 20 | . . . 20 Special . | . . . . Kinetic 54 | . 25 . 29 Thermal 35 | . 14 . 21 Explosive 20 | . . . 20 Electromagnetic 26 | . 25 . 1 Robot Hit Streak 8 | . 8 . 6 Robot Miss Streak 3 | . 3 . 3 Penetration Max . | . . . . Secondary Targets 1 | . 1 . . Max Gunslinging Chain 1 | . 1 . . Shots Hit Robots 74 | . 37 . 37 Core Hits 47 | . 22 . 25 Critical Kills . | . . . . Critical Parts Destroyed . | . . . . Critical Strikes . | . . . . Melee Attacks . | . . . . Impact . | . . . . Slashing . | . . . . Piercing . | . . . . Sneak Attacks . | . . . . Combat Hostiles . | . . . . Follow-up Attacks . | . . . . Damage Inflicted 1891 | . 652 . 1239 Guns 1110 | . 540 . 570 Cannons 53 | . . . 53 Explosions 728 | . 112 . 616 Melee . | . . . . Ramming . | . . . . Kinetic 629 | . 214 . 415 Thermal 415 | . 218 . 197 Explosive 616 | . . . 616 Electromagnetic 231 | . 220 . 11 Impact . | . . . . Slashing . | . . . . Piercing . | . . . . Highest Corruption . | . . . . Average Corruption . | . . . . Corruption Purged . | . . . . Corruption Blocked . | . . . . Overload Shots . | . . . . Overflow Damage 12 | . . . 12 Projectiles . | . . . . Explosions 12 | . . . 12 Melee . | . . . . Knockbacks . | . . . . Impact . | . . . . Kinetic . | . . . . Secondary . | . . . . Self-Inflicted Damage 39 | . . . 39 Shots 2 | . . . 2 Rammed . | . . . . Targets Rammed . | . . . . Kicked . | . . . . Crushed . | . . . . Highest Temperature 324 | . 324 . 45 Average Temperature 79 | . 101 . 18 Received Heat Transfer 276 | . 108 . 168 Effects 2 | . 2 . . Interference 1 | . 1 . . Matter Decay 1 | . 1 . . Siege Activations . | . . . . Martial Activations . | . . . . Shielding Activations . | . . . . Robots Disrupted . | . . . . Combat Hostiles . | . . . . Robots Corrupted . | . . . . Combat Hostiles . | . . . . Parts Fried 1 | . 1 . . Impact Corruptions . | . . . . Robots Melted . | . . . . Combat Hostiles . | . . . . Parts Melted . | . . . . Heat Transferred 840 | . 359 . 481 Parts Sabotaged . | . . . . Parts Stolen . | . . . . Parts Stripped . | . . . . Power Chain Reactions 2 | . 2 . . Alert | -11 -10 -10 -10 ------- Run | Yrd Mat Min Sub Maximum Alert Level . | . . . . Low Security (%) 100 | 100 100 100 . Level 1 . | . . . . Level 2 . | . . . . Level 3 . | . . . . Level 4 . | . . . . Level 5 . | . . . . High Security . | . . . . Max Security . | . . . . Peak Influence 143 | . 143 47 . Initial 47 | . . 47 . Average 29 | . 35 23 . Influence Increases 477 | . 287 . 190 Destroy 0b10 Robot/C 300 | . 200 . 100 Destroy 0b10 Robot/NC 20 | . 20 . . Destroy Leader 44 | . 44 . . Successful Hack 19 | . 19 . . Destroy Structure 4 | . 4 . . Lose Combat Pursuer 90 | . . . 90 Influence Decreases 419 | . 164 123 132 Entered New Map 76 | . . 76 . Time Decay 293 | . 144 47 102 Lost Part 50 | . 20 . 30 Squads Dispatched 2 | . 2 . . Investigation 2 | . 2 . . Extermination . | . . . . Reinforcement . | . . . . Assault . | . . . . Garrison . | . . . . Intercept . | . . . . Searches Triggered . | . . . . Construction Impeded . | . . . . Haulers Reinforced . | . . . . Active Scanning Responses . | . . . . Cargo Convoy Interrupts . | . . . . Stealth | -11 -10 -10 -10 --------- Run | Yrd Mat Min Sub Distress Signals 1 | . 1 . . Communications Jammed . | . . . . Distress Signals . | . . . . Times Spotted 34 | . 16 . 18 Peak Tracking Total 6 | . 6 . 6 Tactical Retreats 3 | . . . 3 Traps | -11 -10 -10 -10 ------- Run | Yrd Mat Min Sub Traps Triggered 2 | . 1 . 1 Indirectly . | . . . . Trap Hack Attempts . | . . . . Triggered . | . . . . Disarmed . | . . . . Reprogrammed . | . . . . Reused . | . . . . Traps Extracted . | . . . . Installed . | . . . . Triggered . | . . . . Machines | -11 -10 -10 -10 ---------- Run | Yrd Mat Min Sub Machines Disabled 2 | . . . 2 Max in Single Turn 1 | . . . 1 Machines Repaired . | . . . . Machines Dismantled . | . . . . Machines Sabotaged . | . . . . Overloaded Fab Kills . | . . . . Hacking | -11 -10 -10 -10 --------- Run | Yrd Mat Min Sub Machines Accessed 5 | . 4 . 1 Terminals 3 | . 3 . . Fabricators . | . . . . Repair Stations 1 | . 1 . . Recycling Units . | . . . . Scanalyzers . | . . . . Garrison Access . | . . . . Total Hacks 14 | . 10 . 4 Successful 10 | . 6 . 4 Failed 4 | . 4 . . Catastrophic 2 | . 2 . . Database Lockouts . | . . . . Manual 7 | . 7 . . Terminals 9 | . 9 . . Fabricators . | . . . . Repair Stations 1 | . 1 . . Recycling Units . | . . . . Scanalyzers . | . . . . Garrison Access . | . . . . Terminal Hacks 9 | . 5 . 4 Record 3 | . . . 3 Branch Access Points 1 | . 1 . . Emergency Access Points 1 | . 1 . . Terminal Index 1 | . 1 . . Hauler Manifests 1 | . 1 . . Zone Layout 1 | . 1 . . Proto ID Catalog 1 | . . . 1 Fabricator Hacks . | . . . . Repair Station Hacks . | . . . . Recycling Unit Hacks . | . . . . Scanalyzer . | . . . . Garrison Access Hacks . | . . . . Unauthorized Hacks 1 | . 1 . . Terminals . | . . . . Fabricators . | . . . . Repair Stations 1 | . 1 . . Patch 1 | . 1 . . Recycling Units . | . . . . Scanalyzers . | . . . . Garrison Access . | . . . . Data Cores Recovered 1 | . 1 . . Used . | . . . . Hacking Detections 3 | . 3 . . Full Trace Events . | . . . . Feedback Events . | . . . . Feedback Blocked . | . . . . Robot Schematics Acquired . | . . . . Robots Built . | . . . . Authchips . | . . . . Time . | . . . . Total Robot Build Rating . | . . . . Part Schematics Acquired . | . . . . Parts Built . | . . . . Authchips . | . . . . Time . | . . . . Total Part Build Rating . | . . . . Parts Repaired . | . . . . Time . | . . . . Parts Recycled . | . . . . Recycled Matter . | . . . . Retrieved Matter . | . . . . Retrieved Components . | . . . . Parts Scanalyzed . | . . . . Part Schematics Acquired . | . . . . Parts Damaged . | . . . . Bothacking | -11 -10 -10 -10 ------------ Run | Yrd Mat Min Sub Used RIF Installer . | . . . . Robots Hacked . | . . . . Non-combat . | . . . . Combat . | . . . . Robot Hacks Applied . | . . . . Relay Couplers Released . | . . . . Fabnet Peak Effective % . | . . . . Robots Rewired . | . . . . Allies Hacked . | . . . . Hacks Repelled . | . . . . Allies | -11 -10 -10 -10 -------- Run | Yrd Mat Min Sub Total Allies . | . . . . Largest Group . | . . . . Highest-Rated Group . | . . . . Highest-Rated Ally . | . . . . Total Orders . | . . . . Ally Attacks . | . . . . Total Damage . | . . . . Kills . | . . . . Allies Corrupted . | . . . . Allies Melted . | . . . . Intel | -11 -10 -10 -10 ------- Run | Yrd Mat Min Sub Active Infowar (turns) 958 | . . . 958 Optics 958 | . . . 958 Robot Analysis Total . | . . . . Derelict Logs Recovered 3 | . . 1 2 Drone Launches . | . . . . Drone Recoveries . | . . . . Exploration | -11 -10 -10 -10 ------------- Run | Yrd Mat Min Sub Turns Passed 1544 | 54 365 113 1012 Spaces Moved 1201 | 52 274 77 798 Core 12 | 12 . . . Treads . | . . . . Legs . | . . . . Wheels 1189 | 40 274 77 798 Hover . | . . . . Flight . | . . . . Fastest Speed 50 | 50 80 80 80 Average Speed 93 | 78 89 80 96 Slowest Speed 120 | 90 95 80 120 Overloaded Moves . | . . . . Propulsion Burnouts . | . . . . Robots Hopped . | . . . . Potential Cave-ins . | . . . . Cave-ins Triggered . | . . . . Exploration Rate (%) 26 | 3 52 15 34 Regions Visited 3 Branch Regions 2 Pre-discovered Areas 2 | . . 1 1 Known Exits Taken 1 | . 1 . . Unknown Exits Taken 2 | 1 . 1 . Scrap Searched . | . . . . Spaces Dug 97 | . . . 97 Terrain Destroyed 167 | . 4 . 163 Melee . | . . . . Projectile . | . . . . AOE 167 | . 4 . 163 Terrain Rammed . | . . . . Walls Destroyed . | . . . . Machines Disabled . | . . . . Actions | -11 -10 -10 -10 --------- Run | Yrd Mat Min Sub Total 1487 | 65 328 128 966 Wait 143 | 2 3 50 88 Move 1198 | 51 273 76 798 Hop . | . . . . Pick Up 23 | 6 6 2 9 Fast Attach . | . . . . Attach 16 | 6 2 . 8 Detach . | . . . . Swap 5 | . 3 . 2 Drop 2 | . 2 . . Fire 100 | . 39 . 61 Melee . | . . . . Ram . | . . . . Kick . | . . . . Crush . | . . . . Escape Stasis . | . . . . Rewire . | . . . . Trap . | . . . . Miscellaneous . | . . . . Route ------- -11/Scrapyard -10/Materials (discovered 3 exits: [*Mat] / *Min x2) -10/Mines -10/Subcaves (discovered 1 exit: [*Rec]) History --------- Turn | Location | Event 25 | -11/Scrapyard | Discovered new exit (range 16) 55 | -11/Scrapyard | Entered Materials 101 | -10/Materials | Identified exit to Mines 131 | -10/Materials | Discovered new exit (range 16) 313 | -10/Materials | Build established: Mutant 420 | -10/Materials | Entered Mines 453 | -10/Mines | Learned location of Zion (-6) 473 | -10/Mines | Received a Rocket Launcher from a helpful Derelict 503 | -10/Mines | Discovered new exit (range 3) 533 | -10/Mines | Entered Subcaves 534 | -10/Subcaves | Approached by a straggling Scientist 623 | -10/Subcaves | Core integrity fell below 50% 666 | -10/Subcaves | Learned Materials security intel 723 | -10/Subcaves | Met a Zionite searching for "candidates" 746 | -10/Subcaves | Learned 4 Materials zone layouts 858 | -10/Subcaves | Visited 4L-MR0's lab 860 | -10/Subcaves | Build established: Scavenger-Mutant 869 | -10/Subcaves | Found Arachnoskeleton 918 | -10/Subcaves | Ambushed by Subdweller buried in earth 918 | -10/Subcaves | Ambushed by Subdweller buried in earth 947 | -10/Subcaves | Ambushed by Subdweller buried in earth 949 | -10/Subcaves | Ambushed by Subdweller buried in earth 1504 | -10/Subcaves | Core integrity fell below 20% 1533 | -10/Subcaves | Discovered new exit (range 11) 1545 | -10/Subcaves | Destroyed by Autobeam Turret with Autobeam Last Messages --------------- Acquired 13 matter. Acquired Sub. Monowheel. Acquired 10 matter. Com. Wheel destroyed. Sub. Machine Gun destroyed. 2X-VHS(R) destroyed. AX-DU1(R) destroyed. The unstable cave ceiling collapses. Acquired Sub. Machine Gun. Acquired 12 matter. The unstable cave ceiling collapses. Rocket Launcher destroyed. Destroyed Rocket Launcher. Ion Engine destroyed. Destroyed Ion Engine. Machine disabled. Destroyed Autobeam. Autobeam Turret destroyed. EXIT=FOUND Sub. Machine Gun destroyed. Map ----- +----------------------------------------------------+ | ?????????#" ### #?????????????????? | | ?????????# ## ### ##?????????????????? | | ????????????# # # ####???????????????? | | ????????????# ## #????????????????# | | ???????????## ### ### #???????????????## | | ??????????## ## #### ##???????????????# | | ??????????# ## ##??## #????????????????# | | ??????????### ## ##????# ###??????????????# | | ???????????## ## ##????## ##?????????###?# | | ???????????# ## #??### #????????## ### | | ???????????## ## #?## #???????## ## | | ???????????## ### #?# #?????### ## | | ???????????# ## ### ##???## ### | | ???????????# # ## ##?## #?# | | ???????????## # # ### ### | | ????????????# ### & | | ????????????# ### #### ## | | ??????????### ###### ## | | ??????????# ### ### ## # | | ??????????# #?# ### ### ##### # | | ??????????# #### ##### ## ##???### | | ??????????# ###""" "## ## % ##????# | | ??????????### ###" ## ### % ###??# | | ????????????# ##" ## ## % #??# | | ?????####???### ##""t % #??#^ | | ##???# ##??### #< % @ #######?## # | | ###?# #### ##"" #?????### # | | "### ###" # ### #?????# ^ # | | " ## # ##?# # #?## #?????# # | | " ###" # ##?#" "## #??## #?????# | | # # " #?######### ???# #????### ^ | | # #????# ##?# #?# ?????#### | | # ##### ### #? ## ??????## | | # #" ## #?##??# ## #?????## | | ## ## ##??????##??#????## | | " # ########????????????????# | | "## ## ##???????????????????????#^ | | ## ## ##???????????????????????# | | "### #### #?#?????????????????????## | | "### #?## # # ###????????????????????## | | ###?# #?# & ##????????????????????? | | ????## ##?#& * # # #????????????????????? | | ?????## ##??## # &[# #????????????????????? | | ??????## ##???# #%= #????????????????????? | | ???????###???# !# [! #???????????????????? | | ?????????????## [%! ## #??????????????????? | | ??????????????# # # # #??????????????????? | | ??????????????# ##??????????????????? | | ??????????????## # ##### ##??????????????????? | | ???????????????# ##????####???????????????????? | +----------------------------------------------------+ Best States ------------- Heat Dissipation 25 Energy Generation 15 Energy Capacity 250 Matter Stores 300 Matter Capacity 300 Sight Range 21 Terrain Scan Density 10 Evasion (%) 50 Item Schematics ----------------- None Robot Schematics ------------------ None Fabricated ------------ Nothing Repaired ---------- Nothing Alien Tech Used ----------------- None Achievements -------------- None Challenges ------------ None Game ------ Seed GunCatalystNeutralizer Manual? 0 Play Time 00:18:01 Cumulative 25.4 hours Start 2025.09.18 @ 11:30:39 End 2025.09.18 @ 17:00:01 Sessions 3 Manual Loads 0 Difficulty Rogue Special Mode None Game No. 41 Rogue 20 Adventurer 21 Explorer 0 Win Type - Total 1 Types 0/0/0/0/0/0/0/1/0/0 Lore% 48 Gallery% 32 Achievement% 37 Wizard Run 0 Options --------- Layout 1 ASCII 0 Keyboard 0 Movement Mouse Keybinds 0 Fullscreen 2 Font 24/Smallcaps Map View 50x35 Zoom Use 0% Tactical HUD 0 Map Filters NONE Filters NONE Steam 1 RUN: 994cb74f-dbbd-403b-a27b-cf3d93302db4